[Event "WJCC U20 Girls 2019"]
[Site "New Delhi"]
[Date "2019.10.16"]
[Round "2.4"]
[White "Assaubayeva, Bibisara"]
[Black "Aakanksha Hagawane"]
[Result "1/2-1/2"]
[ECO "D85"]
[WhiteElo "2381"]
[BlackElo "2181"]
[Annotator "NA"]
[PlyCount "104"]
[EventDate "2019.10.15"]
[EventType "swiss"]
[EventCountry "IND"]
[SourceTitle "playchess.com"]
[Source "ChessBase"]
[SourceQuality "1"]
[TimeControl "40/5400+30:1800+30"]

1. d4 {[%emt 0:00:00]} Nf6 {[%emt 0:00:00]} 2. c4 {[%emt 0:00:00]} g6 {[%emt 0:00:00]} 3. Nc3 {[%emt 0:00:00]} d5 {[%emt 0:00:00]} 4. cxd5 {[%emt 0:00:00]} Nxd5 {[%emt 0:00:02]} 5. e4 {[%emt 0:00:04]} Nxc3 {[%emt 0:02:18]} 6. bxc3 {[%emt 0:00:02]} Bg7 {[%emt 0:00:09]} 7. Nf3 {[%emt 0:00:17]} c5 {[%emt 0:01:22]} 8. h3 {[%emt 0:00:16]} O-O {[%emt 0:01:28]} 9. Be2 {[%emt 0:00:06]} Nc6 {[%emt 0:01:46]} 10. Be3 {[%emt 0:00:16]} cxd4 {[%emt 0:03:42] D85: Exchange Grünfeld: Unusual White 7th moves and lines with 7 Nf3} 11. cxd4 {[%emt 0:00:02]} Qa5+ {[%emt 0:00:07]} (11... f5 12. Bc4+ Kh8 13. O-O f4 14. Bc1 Nxd4 15. Ba3 Qa5 16. Bxe7 Re8 17. Bd6 Rxe4 18. Rc1 {0-1 (79) Van Foreest,J (2618)-Vachier Lagrave,M (2780) La Roche sur Yon 2019}) 12. Bd2 {[%emt 0:00:11]} Qa3 {[%emt 0:02:39]} 13. d5 {[%emt 0:02:14]} Ne5 {[%emt 0:06:02]} 14. O-O {[%emt 0:00:28]} Nxf3+ {[%emt 0:05:36]} 15. Bxf3 {[%emt 0:00:08]} b6 {[%emt 0:07:02] [#]} 16. Rc1 $146 {[%emt 0:07:07]} ({Predecessor:} 16. Re1 Bb7 {½-½ (59) Parligras,M (2605)-Alsina Leal,D (2533) Barcelona 2017}) 16... Bb7 {[%emt 0:08:49]} 17. Bf4 {[%emt 0:08:37]} Rfc8 {[%emt 0:11:20]} 18. Qd2 {[%emt 0:06:21]} Bc3 {[%emt 0:06:57]} 19. Qe3 {[%emt 0:03:55]} Bb2 {[%emt 0:01:05]} 20. Rb1 {[%emt 0:04:02]} Qxe3 {[%emt 0:04:18]} 21. Bxe3 {[%emt 0:02:00]} Be5 {[%emt 0:03:03]} 22. a4 {[%emt 0:07:19]} Ba6 {[%emt 0:01:48]} 23. Rfd1 {[%emt 0:00:47]} Rc7 {[%emt 0:03:45]} 24. Bd4 {[%emt 0:04:00]} Bxd4 {[%emt 0:02:44]} 25. Rxd4 {[%emt 0:01:51]} Rd8 {[%emt 0:04:06]} 26. Rdd1 {[%emt 0:05:25]} Rc2 {[%emt 0:02:27]} 27. Rdc1 {[%emt 0:06:31]} Rdc8 {[%emt 0:02:06]} 28. Rxc2 {[%emt 0:06:50]} Rxc2 {[%emt 0:00:28]} 29. Bd1 {[%emt 0:05:39]} Rc5 {[%emt 0:05:54]} 30. f3 {[%emt 0:01:59]} Kf8 {[%emt 0:01:25]} 31. Kf2 {[%emt 0:01:01]} Ke8 {[%emt 0:00:27]} 32. Rb2 {[%emt 0:03:46]} Kd7 {[%emt 0:01:50]} 33. h4 {[%emt 0:02:53]} e6 {[%emt 0:03:57]} 34. dxe6+ {[%emt 0:01:48]} Kxe6 {[%emt 0:00:02]} 35. Rd2 {[%emt 0:01:54]} Ke7 {[%emt 0:00:18]} 36. g4 {[%emt 0:08:08]} h6 {[%emt 0:01:37]} 37. f4 {[%emt 0:02:38]} Rc3 {[%emt 0:01:15]} 38. g5 {[%emt 0:02:45]} hxg5 {[%emt 0:01:26]} 39. hxg5 {[%emt 0:00:04]} Rd3 {[%emt 0:02:05]} 40. Rxd3 {[%emt 0:00:37]} Bxd3 {[%emt 0:00:02]} 41. Ke3 {[%emt 0:30:13]} Ba6 {[%emt 0:32:12]} 42. Kd4 {[%emt 0:01:00]} Bc8 {[%emt 0:01:56]} 43. Bc2 {[%emt 0:03:11]} Bd7 {[%emt 0:00:00]} 44. Kd5 $11 {[%emt 0:00:00]} a5 {[%emt 0:00:00]} 45. f5 {[%emt 0:00:00]} gxf5 {[%emt 0:00:00]} 46. exf5 {[%emt 0:00:00]} b5 {[%emt 0:00:00]} 47. f6+ {[%emt 0:00:00]} Ke8 {[%emt 0:00:00]} 48. Kd6 {[%emt 0:00:00]} bxa4 {[%emt 0:00:00]} 49. g6 {[%emt 0:00:00]} fxg6 {[%emt 0:00:00]} 50. Bxg6+ {[%emt 0:00:00]} Kf8 {[%emt 0:00:00]} 51. Kxd7 {[%emt 0:00:00]} a3 {[%emt 0:00:00]} 52. Bb1 {[%emt 0:00:00]} Kf7 {[%emt 0:00:00]} 1/2-1/2

[Event "WJCC U20 Girls 2019"]
[Site "New Delhi"]
[Date "2019.10.16"]
[Round "2.5"]
[White "Potapova, Margarita"]
[Black "Cervantes Landeiro, Thalia"]
[Result "0-1"]
[ECO "D85"]
[WhiteElo "2377"]
[BlackElo "2176"]
[Annotator "NA"]
[PlyCount "56"]
[EventDate "2019.10.15"]
[EventType "swiss"]
[EventCountry "IND"]
[SourceTitle "playchess.com"]
[Source "ChessBase"]
[SourceQuality "1"]
[TimeControl "40/5400+30:1800+30"]

1. d4 {[%emt 0:00:00]} Nf6 {[%emt 0:00:00]} 2. c4 {[%emt 0:00:00]} g6 {[%emt 0:00:00]} 3. Nc3 {[%emt 0:00:00]} d5 {[%emt 0:00:00]} 4. cxd5 {[%emt 0:00:10]} Nxd5 {[%emt 0:00:05]} 5. e4 {[%emt 0:00:07]} Nxc3 {[%emt 0:00:08]} 6. bxc3 {[%emt 0:00:04]} Bg7 {[%emt 0:00:10]} 7. Nf3 {[%emt 0:00:08]} O-O {[%emt 0:01:20]} 8. Be3 {[%emt 0:00:55]} c5 {[%emt 0:00:39]} 9. Be2 {[%emt 0:00:17]} b6 {[%emt 0:02:08] D85: Exchange Grünfeld: Unusual White 7th moves and lines with 7 Nf3} 10. Rc1 {[%emt 0:00:29]} Bb7 {[%emt 0:02:45]} (10... e6 11. O-O Bb7 12. Qd3 Nd7 13. Bg5 {½-½ (13) Yu,Y (2764)-Artemiev,V (2709) St Petersburg 2018}) 11. d5 {[%emt 0:01:45]} Qc7 {[%emt 0:09:46]} 12. c4 {[%emt 0:03:16]} e6 $146 {[%emt 0:07:16]} ({Predecessor:} 12... Nd7 13. O-O Rfd8 14. Qb3 Nf6 15. Qc2 Bc8 16. h3 e5 17. Nd2 {1-0 (45) Garcia Gorostegui,E (1949)-Nunez,B (1849) Tacuari 2018}) 13. Qd2 {[%emt 0:03:29]} exd5 {[%emt 0:03:26]} 14. exd5 {[%emt 0:07:43]} Re8 {[%emt 0:03:14]} 15. h4 {[%emt 0:03:15]} Nd7 {[%emt 0:08:11]} 16. h5 {[%emt 0:01:11]} Nf6 {[%emt 0:05:16]} 17. h6 {[%emt 0:06:44]} Ne4 {[%emt 0:04:12]} 18. Qd3 {[%emt 0:03:14]} Bf6 {[%emt 0:05:04]} 19. O-O {[%emt 0:02:50]} Bc8 {[%emt 0:03:57]} 20. Rfe1 {[%emt 0:04:40]} Bf5 {[%emt 0:01:30]} 21. Qb3 {[%emt 0:00:31]} Re7 {[%emt 0:08:42]} 22. Bf1 {[%emt 0:08:31]} Rae8 {[%emt 0:03:42]} 23. a4 {[%emt 0:02:22]} Bg4 {[%emt 0:02:50]} 24. Nh2 {[%emt 0:05:15]} Bh5 {[%emt 0:04:53]} 25. Bd3 {[%emt 0:04:50]} Qd6 $11 {[%emt 0:08:20]} 26. Kh1 {[%emt 0:09:40]} Nxf2+ {[%emt 0:03:05]} 27. Bxf2 {[%emt 0:03:44]} Bd4 {[%emt 0:00:33]} 28. Rxe7 {[%emt 0:08:14]} Rxe7 {[%emt 0:01:01]} 0-1

[Event "WJCC U20 Girls 2019"]
[Site "New Delhi"]
[Date "2019.10.16"]
[Round "2.6"]
[White "Berdnyk, Mariia"]
[Black "Nilssen, Ellen Fredericia"]
[Result "1-0"]
[ECO "A16"]
[WhiteElo "2349"]
[BlackElo "2137"]
[Annotator "NA"]
[PlyCount "37"]
[EventDate "2019.10.15"]
[EventType "swiss"]
[EventCountry "IND"]
[SourceTitle "playchess.com"]
[Source "ChessBase"]
[SourceQuality "1"]
[TimeControl "40/5400+30:1800+30"]

1. c4 {[%emt 0:00:00]} Nf6 {[%emt 0:00:36]} 2. Nc3 {[%emt 0:00:00]} d5 {[%emt 0:01:16]} 3. cxd5 {[%emt 0:00:00]} Nxd5 {[%emt 0:00:09]} 4. g3 {[%emt 0:00:00]} g6 {[%emt 0:00:24]} 5. Bg2 {[%emt 0:00:00]} Nb6 {[%emt 0:00:19]} 6. d3 {[%emt 0:00:02]} Bg7 {[%emt 0:00:10]} 7. Be3 {[%emt 0:00:28]} O-O {[%emt 0:06:28]} 8. Qd2 {[%emt 0:00:13]} c6 $11 {[%emt 0:04:50]} 9. Nf3 {[%emt 0:01:47]} Na6 {[%emt 0:04:48]} 10. Bh6 {[%emt 0:10:17]} Nd5 {[%emt 0:13:17]} 11. h4 {[%emt 0:04:33]} Qd6 {[%emt 0:13:54]} 12. h5 {[%emt 0:02:08]} Bxh6 {[%emt 0:13:48]} 13. Qxh6 {[%emt 0:00:10]} gxh5 {[%emt 0:00:07]} 14. Qxd6 {[%emt 0:07:58]} exd6 {[%emt 0:00:10]} 15. Nxd5 {[%emt 0:00:08]} cxd5 {[%emt 0:00:11]} 16. Rxh5 {[%emt 0:00:04]} Be6 {[%emt 0:03:00]} 17. Kd2 {[%emt 0:01:32]} Rac8 {[%emt 0:04:47]} 18. Nd4 {[%emt 0:12:23]} Nb4 {[%emt 0:01:17]} 19. f4 {[%emt 0:02:44]} 1-0

[Event "WJCC U20 Girls 2019"]
[Site "New Delhi"]
[Date "2019.10.16"]
[Round "2.8"]
[White "Munkhzul, Turmunkh"]
[Black "Avetisyan, Mariam"]
[Result "0-1"]
[ECO "B18"]
[WhiteElo "2332"]
[BlackElo "2110"]
[Annotator "NA"]
[PlyCount "45"]
[EventDate "2019.10.15"]
[EventType "swiss"]
[EventCountry "IND"]
[SourceTitle "playchess.com"]
[Source "ChessBase"]
[SourceQuality "1"]
[TimeControl "40/5400+30:1800+30"]

1. e4 {[%emt 0:00:00]} c6 {[%emt 0:00:00]} 2. d4 {[%emt 0:00:00]} d5 {[%emt 0:00:00]} 3. Nc3 {[%emt 0:00:16]} dxe4 {[%emt 0:00:14]} 4. Nxe4 {[%emt 0:00:13]} Bf5 {[%emt 0:00:00]} 5. Ng3 {[%emt 0:00:10]} Bg6 {[%emt 0:00:00]} 6. h4 {[%emt 0:00:35]} h6 {[%emt 0:00:03]} 7. Nf3 {[%emt 0:00:32]} e6 {[%emt 0:00:08]} 8. Ne5 {[%emt 0:00:42]} Bh7 {[%emt 0:00:10]} 9. Bd3 {[%emt 0:00:16]} Bxd3 $11 {[%emt 0:00:05]} 10. Qxd3 {[%emt 0:00:07]} Nd7 {[%emt 0:00:05]} 11. Bf4 {[%emt 0:00:30]} Ngf6 {[%emt 0:06:39]} 12. O-O-O {[%emt 0:02:09]} Bd6 {[%emt 0:08:33]} 13. Kb1 {[%emt 0:06:07]} Qc7 {[%emt 0:13:56]} 14. Ne4 {[%emt 0:05:22]} Nxe4 {[%emt 0:03:23]} 15. Qxe4 {[%emt 0:03:41]} Nf6 {[%emt 0:02:20]} 16. Qf3 {[%emt 0:01:02]} O-O-O {[%emt 0:01:38]} 17. Rhe1 {[%emt 0:01:43]} Rhf8 {[%emt 0:12:06]} 18. Bxh6 {[%emt 0:03:24]} Ne8 {[%emt 0:30:14]} 19. Bc1 {[%emt 0:03:19]} Kb8 {[%emt 0:06:12]} 20. g4 {[%emt 0:02:00]} Ka8 {[%emt 0:08:04]} 21. h5 {[%emt 0:02:51]} Be7 {[%emt 0:01:39]} 22. Bf4 {[%emt 0:01:17]} Nd6 {[%emt 0:01:04]} 23. Be3 {[%emt 0:04:38]} 0-1

[Event "WJCC U20 Girls 2019"]
[Site "New Delhi"]
[Date "2019.10.16"]
[Round "2.12"]
[White "Harshita Guddanti"]
[Black "Solozhenkina, Elizaveta"]
[Result "1/2-1/2"]
[ECO "B18"]
[WhiteElo "2123"]
[BlackElo "2283"]
[Annotator "NA"]
[PlyCount "89"]
[EventDate "2019.10.15"]
[EventType "swiss"]
[EventCountry "IND"]
[SourceTitle "playchess.com"]
[Source "ChessBase"]
[SourceQuality "1"]
[TimeControl "40/5400+30:1800+30"]

1. e4 {[%emt 0:00:00]} c6 {[%emt 0:00:00]} 2. d4 {[%emt 0:00:00]} d5 {[%emt 0:00:00]} 3. Nc3 {[%emt 0:00:05]} dxe4 {[%emt 0:00:00]} 4. Nxe4 {[%emt 0:00:05]} Bf5 {[%emt 0:00:15]} 5. Ng3 {[%emt 0:00:09]} Bg6 {[%emt 0:00:06]} 6. h4 {[%emt 0:00:14]} h6 {[%emt 0:00:18]} 7. Nf3 {[%emt 0:01:18]} e6 {[%emt 0:00:56]} 8. Ne5 {[%emt 0:00:41]} Bh7 {[%emt 0:00:23]} 9. Bd3 {[%emt 0:05:16]} Bxd3 {[%emt 0:00:11]} 10. Qxd3 {[%emt 0:00:16]} Nd7 {[%emt 0:00:17] B19: Classical Caro-Kann: 4...Bf5 main line} 11. Bf4 {[%emt 0:01:01]} (11. f4 Be7 12. Nh5 Ngf6 13. Nxg7+ Kf8 14. Nxe6+ fxe6 15. Bd2 Rh7 16. Rh3 c5 17. O-O-O cxd4 18. Rg3 {½-½ (27) Inarkiev,E (2682)-Tomashevsky,E (2706) Izhevsk 2019}) 11... Nxe5 {[%emt 0:19:23]} 12. Bxe5 {[%emt 0:02:13]} Qa5+ {[%emt 0:01:06]} 13. c3 {[%emt 0:01:55]} Nf6 {[%emt 0:07:42]} 14. O-O {[%emt 0:02:30]} Rd8 {[%emt 0:09:49]} 15. Qe2 {[%emt 0:10:22]} Be7 {[%emt 0:05:22]} 16. Ne4 $146 {[%emt 0:15:04]} ({Predecessor:} 16. Nh5 Nxh5 17. Qxh5 Bf6 18. Rfe1 {0-1 (36) Chahrour,I (2269)-Nezad,H (2404) Muscat 2015}) 16... Qd5 {[%emt 0:06:22]} 17. Rfe1 {[%emt 0:12:06]} Qxe4 {[%emt 0:12:14]} 18. Qxe4 {[%emt 0:00:09]} Nxe4 {[%emt 0:00:05]} 19. Rxe4 {[%emt 0:00:06]} O-O {[%emt 0:00:57]} 20. h5 {[%emt 0:02:29]} Rd5 {[%emt 0:02:16]} 21. Rae1 {[%emt 0:06:54]} Rfd8 {[%emt 0:09:54]} 22. b4 {[%emt 0:05:30]} Bf6 $11 {[%emt 0:04:43]} 23. a4 {[%emt 0:06:41]} b6 {[%emt 0:08:02]} 24. g4 {[%emt 0:03:17]} Kf8 {[%emt 0:02:14]} 25. Kg2 {[%emt 0:02:36]} Ra8 {[%emt 0:03:23]} 26. R4e2 {[%emt 0:06:09]} Be7 {[%emt 0:02:25]} 27. Rb1 {[%emt 0:02:11]} Rc8 {[%emt 0:01:26]} 28. Kf3 {[%emt 0:03:54]} Bf6 {[%emt 0:00:49]} 29. c4 {[%emt 0:09:19]} Rd7 {[%emt 0:00:12]} 30. Bxf6 {[%emt 0:00:14]} gxf6 {[%emt 0:00:02]} 31. Re4 {[%emt 0:00:10]} c5 {[%emt 0:03:15]} 32. bxc5 {[%emt 0:01:33]} bxc5 {[%emt 0:00:01]} 33. Ke3 {[%emt 0:01:05]} Rc6 {[%emt 0:01:39]} 34. Rb8+ {[%emt 0:00:37]} Kg7 {[%emt 0:00:02]} 35. Rb5 {[%emt 0:00:41]} cxd4+ {[%emt 0:00:42]} 36. Rxd4 {[%emt 0:00:04]} Rdc7 {[%emt 0:00:03]} 37. Kd3 {[%emt 0:00:26]} e5 {[%emt 0:01:03]} 38. Re4 {[%emt 0:00:46]} Rd6+ {[%emt 0:00:30]} 39. Rd5 {[%emt 0:00:30]} Rxd5+ {[%emt 0:00:34]} 40. cxd5 {[%emt 0:00:06]} Rc5 {[%emt 0:00:01]} 41. Rc4 {[%emt 0:08:25]} Rxd5+ {[%emt 0:00:27]} 42. Ke3 {[%emt 0:04:49]} Rd1 {[%emt 0:15:27]} 43. f3 {[%emt 0:02:46]} Rd6 {[%emt 0:05:00]} 44. f4 {[%emt 0:02:43]} exf4+ {[%emt 0:05:03]} 45. Ke4 1/2-1/2

[Event "WJCC U20 Girls 2019"]
[Site "New Delhi"]
[Date "2019.10.16"]
[Round "2.17"]
[White "Priyanka Nutakki"]
[Black "Lakshmi C"]
[Result "1-0"]
[ECO "A05"]
[WhiteElo "2248"]
[BlackElo "1859"]
[Annotator "NA"]
[PlyCount "80"]
[EventDate "2019.10.15"]
[EventType "swiss"]
[EventCountry "IND"]
[SourceTitle "playchess.com"]
[Source "ChessBase"]
[SourceQuality "1"]
[TimeControl "40/5400+30:1800+30"]

1. Nf3 Nf6 2. c4 g6 3. b3 Bg7 4. Bb2 d6 5. g3 O-O 6. Bg2 e5 7. O-O Ne8 8. Nc3 f5 9. d3 c6 10. b4 a5 11. b5 Be6 12. Nd2 Kh8 13. Rc1 Nf6 14. Na4 Nfd7 15. Ba3 Nf6 16. Qb3 Rf7 17. bxc6 Nxc6 18. e3 Ra6 19. Nc3 Bf8 20. Nd5 Qc8 21. Rb1 Ne8 22. f4 Bg7 23. Rfc1 Qd8 24. Qd1 g5 25. Kh1 g4 26. e4 Bxd5 27. cxd5 Nd4 28. exf5 exf4 29. gxf4 h5 30. Ne4 Rxf5 31. Ng3 Rf7 32. Nxh5 Qh4 33. Qe1 Qxh5 34. Qxe8+ Bf8 35. Bb2 Kg8 36. Bxd4 g3 37. h3 Qh4 38. Qe6 Ra8 39. Rxb7 Be7 40. Rbc7 Raf8 1-0

[Event "WJCC U20 Girls 2019"]
[Site "New Delhi"]
[Date "2019.10.16"]
[Round "2.19"]
[White "Potluri Supreetha"]
[Black "Diakonova, Ekaterina"]
[Result "0-1"]
[ECO "A43"]
[WhiteElo "1767"]
[BlackElo "2231"]
[Annotator "NA"]
[PlyCount "61"]
[EventDate "2019.10.15"]
[EventType "swiss"]
[EventCountry "IND"]
[SourceTitle "playchess.com"]
[Source "ChessBase"]
[SourceQuality "1"]
[TimeControl "40/5400+30:1800+30"]

1. d4 {[%emt 0:00:00]} Nf6 {[%emt 0:00:00]} 2. Nf3 {[%emt 0:00:00]} c5 {[%emt 0:00:00]} 3. d5 {[%emt 0:00:00]} b5 {[%emt 0:00:00]} 4. c4 {[%emt 0:14:24]} g6 $16 {[%emt 0:00:00]} 5. Qc2 {[%emt 0:20:12]} d6 {[%emt 0:00:53]} 6. e4 {[%emt 0:00:39]} Bg7 {[%emt 0:07:41]} 7. cxb5 {[%emt 0:07:01]} a6 {[%emt 0:00:22]} 8. Nc3 {[%emt 0:01:06]} O-O {[%emt 0:01:22]} 9. h3 {[%emt 0:06:40]} Ne8 {[%emt 0:07:06]} 10. bxa6 {[%emt 0:06:24]} f5 {[%emt 0:06:13]} 11. exf5 {[%emt 0:11:46]} Bxf5 {[%emt 0:00:13]} 12. Bd3 {[%emt 0:00:17]} Nxa6 {[%emt 0:02:22]} 13. Bxf5 {[%emt 0:00:13]} Rxf5 {[%emt 0:00:10]} 14. O-O {[%emt 0:04:47]} Nb4 {[%emt 0:07:27]} 15. Qe4 {[%emt 0:14:04]} Nf6 {[%emt 0:03:09]} 16. Qe6+ {[%emt 0:00:13]} Kf8 {[%emt 0:12:46]} 17. Ng5 {[%emt 0:04:49]} Qe8 {[%emt 0:00:14]} 18. f4 {[%emt 0:01:41]} Nc2 {[%emt 0:01:05]} 19. Rb1 Nd4 {[%emt 0:00:32]} 20. Qe1 {[%emt 0:04:39]} h5 {[%emt 0:00:34]} 21. Qd1 {[%emt 0:01:00]} h4 {[%emt 0:10:00]} 22. Qe1 {[%emt 0:00:29]} Nxd5 {[%emt 0:00:37]} 23. Qxh4 {[%emt 0:00:26]} Nxc3 {[%emt 0:04:38]} 24. bxc3 {[%emt 0:00:02]} Ne2+ {[%emt 0:00:02]} 25. Kh2 {[%emt 0:01:03]} Rxa2 {[%emt 0:16:10]} 26. Rf2 {[%emt 0:00:31]} Nxc1 {[%emt 0:05:52]} 27. Rxc1 {[%emt 0:00:28]} Rxf2 {[%emt 0:01:39]} 28. Qxf2 {[%emt 0:00:02]} e5 {[%emt 0:00:01]} 29. Qd2 {[%emt 0:00:50]} exf4 {[%emt 0:07:08]} 30. Qxd6+ {[%emt 0:00:06]} Kg8 {[%emt 0:00:11]} 31. Rb1 {[%emt 0:01:03]} 0-1

[Event "WJCC U20 Girls 2019"]
[Site "New Delhi"]
[Date "2019.10.16"]
[Round "2.21"]
[White "Shuvalova, Polina"]
[Black "Savitha Shri B"]
[Result "1-0"]
[ECO "B40"]
[WhiteElo "2412"]
[BlackElo "1916"]
[Annotator "NA RC"]
[PlyCount "73"]
[EventDate "2019.10.15"]
[EventType "swiss"]
[EventCountry "IND"]
[SourceTitle "playchess.com"]
[Source "ChessBase"]
[SourceQuality "1"]
[TimeControl "40/5400+30:1800+30"]

1. e4 {[%emt 0:00:00]} c5 {[%emt 0:00:00]} 2. Nf3 {[%emt 0:00:00]} e6 {[%emt 0:00:00]} 3. c3 {[%emt 0:01:06]} d5 {[%emt 0:00:00]} 4. exd5 {[%emt 0:00:12]} exd5 {[%emt 0:00:00]} 5. d4 {[%emt 0:00:13]} Nc6 {[%emt 0:00:05]} 6. Bb5 {[%emt 0:04:56]} Nf6 {[%emt 0:06:50]} 7. O-O {[%emt 0:00:13]} a6 {[%emt 0:04:50] B22: Sicilian: 2 c3} (7... Be7 8. dxc5 Bxc5 9. Re1+ Be6 10. Be3 Bxe3 11. Rxe3 O-O 12. h3 Qb6 13. a4 Rad8 14. Nd4 Nxd4 15. Qxd4 Qxd4 16. cxd4 {½-½ (74) Jones,G (2682)-Golubov,S (2482) St Petersburg 2018}) 8. Bxc6+ {[%emt 0:08:48]} bxc6 {[%emt 0:00:11]} 9. Qa4 $146 {[%emt 0:00:19]} ({Predecessor:} 9. Re1+ Be6 10. Ne5 Qb6 11. Qb3 Rb8 12. Nxc6 Qxb3 13. axb3 Rb6 14. Na5 cxd4 {1-0 (22) Chigarev,V (1661)-Shustov,D (1760) Kirov 2018}) 9... Bd7 {[%emt 0:04:35]} 10. Bg5 {[%emt 0:07:49]} Be7 {[%emt 0:02:48]} 11. Ne5 {[%emt 0:04:11]} Qc8 {[%emt 0:12:36]} 12. dxc5 {[%emt 0:03:40]} O-O {[%emt 0:00:50]} 13. Nd2 {[%emt 0:02:26]} Bxc5 {[%emt 0:03:27]} 14. Bxf6 {[%emt 0:01:54]} gxf6 {[%emt 0:00:10]} 15. Nxd7 {[%emt 0:02:13]} Qxd7 {[%emt 0:00:08]} 16. Rad1 {[%emt 0:01:29]} Kh8 {[%emt 0:04:22]} 17. Nb3 {[%emt 0:04:44]} Bd6 {[%emt 0:10:24]} 18. Qh4 {[%emt 0:05:08]} Be7 {[%emt 0:03:10]} 19. Rd3 {[%emt 0:05:02]} Rg8 {[%emt 0:03:22]} 20. Re1 {[%emt 0:02:01]} Rae8 {[%emt 0:04:44]} 21. Rh3 {[%emt 0:07:35]} Rg7 {[%emt 0:00:18]} 22. Rhe3 {[%emt 0:01:01]} Reg8 {[%emt 0:02:28]} 23. g3 {[%emt 0:01:13]} Bd8 {[%emt 0:00:21]} 24. Nc5 {[%emt 0:03:03]} Qd6 $18 {[%emt 0:11:06]} (24... Qc8 $16 25. Nd3 Qg4 26. Qxg4 Rxg4) 25. Nb7 {[%emt 0:05:36]} Qc7 {[%emt 0:00:13]} 26. Nxd8 {[%emt 0:00:32]} Qxd8 {[%emt 0:00:05]} 27. Re7 {[%emt 0:00:37]} Qd6 {[%emt 0:01:24]} 28. b4 {[%emt 0:01:39]} f5 {[%emt 0:06:41]} 29. Qd4 {[%emt 0:01:42]} Qg6 {[%emt 0:03:46]} 30. Ra7 {[%emt 0:02:37]} h5 {[%emt 0:10:13]} 31. Rxa6 Rb8 {[%emt 0:01:26]} 32. a4 {[%emt 0:05:30]} Kh7 {[%emt 0:01:08]} 33. b5 {[%emt 0:00:45]} Rc8 {[%emt 0:00:06]} 34. Re5 {[%emt 0:02:14]} f4 {[%emt 0:03:26]} 35. Qxf4 {[%emt 0:00:54]} Kg8 {[%emt 0:00:41]} 36. Kg2 {[%emt 0:01:16]} Qd6 {[%emt 0:01:33]} 37. Re8+ {[%emt 0:00:18]} 1-0

[Event "WJCC U20 Girls 2019"]
[Site "New Delhi"]
[Date "2019.10.16"]
[Round "2.22"]
[White "Tanishka Kotia"]
[Black "Narva, Mai"]
[Result "0-1"]
[ECO "B22"]
[WhiteElo "2090"]
[BlackElo "2378"]
[Annotator "NA"]
[PlyCount "68"]
[EventDate "2019.10.15"]
[EventType "swiss"]
[EventCountry "IND"]
[SourceTitle "playchess.com"]
[Source "ChessBase"]
[SourceQuality "1"]
[TimeControl "40/5400+30:1800+30"]

1. e4 {[%emt 0:00:00]} c5 {[%emt 0:00:00]} 2. c3 {[%emt 0:00:00]} Nf6 {[%emt 0:00:00]} 3. e5 {[%emt 0:00:00]} Nd5 {[%emt 0:00:06]} 4. d4 {[%emt 0:00:00]} cxd4 {[%emt 0:00:14]} 5. cxd4 {[%emt 0:00:01]} d6 {[%emt 0:00:18]} 6. Nf3 {[%emt 0:00:09]} Nc6 {[%emt 0:00:12]} 7. Bc4 {[%emt 0:00:13]} Nb6 {[%emt 0:00:14]} 8. Bb5 {[%emt 0:00:14]} Bd7 {[%emt 0:00:18]} 9. Nc3 {[%emt 0:11:23]} dxe5 {[%emt 0:00:39] B22: Sicilian: 2 c3} 10. dxe5 {[%emt 0:03:08]} g6 {[%emt 0:01:09]} 11. O-O {[%emt 0:03:58]} Bg7 {[%emt 0:01:29]} 12. Bf4 $146 {[%emt 0:10:24]} ({Predecessor:} 12. Qe2 O-O {½-½ (42) Vysochin,S (2529)-Eljanov,P (2712) Kiev 2011}) 12... O-O {[%emt 0:03:34]} 13. Qe2 {[%emt 0:00:24]} a6 {[%emt 0:12:54]} 14. Bxc6 {[%emt 0:01:51]} Bxc6 {[%emt 0:00:49]} 15. Rfd1 {[%emt 0:01:39]} Nd5 {[%emt 0:04:57]} 16. Nxd5 {[%emt 0:04:41]} Bxd5 {[%emt 0:00:18]} 17. Qe3 {[%emt 0:01:17]} Rc8 {[%emt 0:04:27]} 18. Bh6 {[%emt 0:06:15]} e6 {[%emt 0:02:22]} 19. h3 {[%emt 0:05:57]} Rc2 {[%emt 0:04:03]} 20. b3 {[%emt 0:17:54]} Qa5 {[%emt 0:02:51]} 21. Bxg7 {[%emt 0:08:07]} Kxg7 {[%emt 0:00:11]} 22. Nh2 {[%emt 0:00:50]} h5 {[%emt 0:04:55]} 23. g4 {[%emt 0:03:53]} Qc3 {[%emt 0:13:03]} 24. Nf1 $19 {[%emt 0:01:24]} hxg4 {[%emt 0:03:10]} 25. Qxc3 {[%emt 0:02:12]} Rxc3 {[%emt 0:00:11]} 26. hxg4 {[%emt 0:02:31]} Rh3 {[%emt 0:01:27]} 27. Ng3 {[%emt 0:00:01]} Rfh8 {[%emt 0:00:44]} 28. Kf1 {[%emt 0:03:47]} Bf3 {[%emt 0:00:24]} 29. Ke1 {[%emt 0:00:07]} Bxd1 {[%emt 0:03:02]} 30. Rxd1 {[%emt 0:00:01]} Rc8 {[%emt 0:01:08]} 31. Rd7 {[%emt 0:00:29]} Rc2 {[%emt 0:02:35]} 32. Rxb7 {[%emt 0:05:01]} Rh2 {[%emt 0:01:13]} 33. Rb4 {[%emt 0:02:35]} Rhxf2 {[%emt 0:00:50]} 34. a4 {[%emt 0:00:22]} Rg2 {[%emt 0:00:33]} 0-1

[Event "WJCC U20 Girls 2019"]
[Site "New Delhi"]
[Date "2019.10.16"]
[Round "2.27"]
[White "Di Benedetto, Desiree"]
[Black "Tsotsonava, Elene"]
[Result "0-1"]
[ECO "D02"]
[WhiteElo "2235"]
[BlackElo "1905"]
[Annotator "NA"]
[PlyCount "54"]
[EventDate "2019.10.15"]
[EventType "swiss"]
[EventCountry "IND"]
[SourceTitle "playchess.com"]
[Source "ChessBase"]
[SourceQuality "1"]
[TimeControl "40/5400+30:1800+30"]

1. d4 {[%emt 0:00:00]} d5 {[%emt 0:00:00]} 2. Nf3 {[%emt 0:00:29]} c5 {[%emt 0:00:00]} 3. g3 {[%emt 0:03:47]} cxd4 {[%emt 0:00:36]} 4. Nxd4 {[%emt 0:01:49]} e5 {[%emt 0:02:15]} 5. Nb3 {[%emt 0:00:24]} Nf6 {[%emt 0:00:28]} 6. Bg2 {[%emt 0:00:23]} Nc6 {[%emt 0:00:11]} 7. O-O {[%emt 0:00:25]} Be6 {[%emt 0:01:01]} 8. Bg5 {[%emt 0:09:31]} Be7 {[%emt 0:00:28]} 9. Nc3 {[%emt 0:06:01]} d4 {[%emt 0:00:24]} 10. Bxf6 {[%emt 0:01:16]} gxf6 {[%emt 0:01:34]} 11. Ne4 {[%emt 0:03:56]} f5 {[%emt 0:12:22]} 12. Nec5 {[%emt 0:02:44]} Bxb3 {[%emt 0:12:46]} 13. Nxb3 {[%emt 0:00:58]} Rg8 {[%emt 0:00:41]} 14. Qd3 {[%emt 0:03:03]} Qd7 {[%emt 0:05:57]} 15. Qb5 {[%emt 0:07:36]} a6 {[%emt 0:05:34]} 16. Qb6 {[%emt 0:09:23]} Rc8 {[%emt 0:08:22]} 17. c3 {[%emt 0:02:57]} Bd8 {[%emt 0:12:44]} 18. Bxc6 {[%emt 0:22:05]} Rxc6 $19 {[%emt 0:00:30]} ({Stronger than} 18... Bxb6 19. Bxd7+ Kxd7 20. Rfd1 $14) 19. Qb4 {[%emt 0:00:17]} f4 {[%emt 0:07:31]} 20. Nd2 {[%emt 0:15:28]} Qh3 {[%emt 0:07:39]} 21. Qxb7 {[%emt 0:01:06]} Rgg6 {[%emt 0:00:14]} 22. Rfc1 {[%emt 0:02:56]} Rh6 {[%emt 0:03:31]} 23. Nf1 {[%emt 0:00:59]} e4 {[%emt 0:00:30]} 24. cxd4 {[%emt 0:03:53]} f3 {[%emt 0:00:50]} 25. exf3 {[%emt 0:00:10]} exf3 {[%emt 0:01:23]} 26. Re1+ {[%emt 0:00:46]} Kf8 {[%emt 0:00:19]} 27. Qb4+ {[%emt 0:00:25]} Kg7 {[%emt 0:00:30]} 0-1